[Event "XXII Obert Internacional d'Escacs Sant Marti 2022"]
[Site "Barcelona, Spain"]
[Date "2022.07.17"]
[Round "5.7"]
[White "D`costa, Lorin"]
[Black "Martin Barcelo, Carles"]
[Result "1-0"]
[TimeControl "1.30 fb 30"]
[WhiteElo "2372"]
[BlackElo "2221"]

1. d4 {[%clk 01:28:35]} {[%emt 00:02:23]} Nf6 {[%clk 01:30:31]} {[%emt
00:00:30]} 2. c4 {[%clk 01:28:47]} {[%emt 00:00:17]} g6 {[%clk 01:28:24]}
{[%emt 00:02:38]} 3. Nc3 {[%clk 01:28:59]} {[%emt 00:00:17]} Bg7 {[%clk
01:28:38]} {[%emt 00:00:18]} 4. e4 {[%clk 01:29:02]} {[%emt 00:00:26]} d6
{[%clk 01:28:46]} {[%emt 00:00:22]} 5. Be2 {[%clk 01:28:49]} {[%emt 00:00:43]}
O-O {[%clk 01:28:01]} {[%emt 00:01:15]} 6. Be3 {[%clk 01:28:58]} {[%emt
00:00:21]} c5 {[%clk 01:15:47]} {[%emt 00:12:46]} 7. d5 {[%clk 01:28:27]}
{[%emt 00:01:00]} e6 {[%clk 01:15:33]} {[%emt 00:00:44]} 8. Nf3 {[%clk
01:27:29]} {[%emt 00:01:28]} exd5 {[%clk 01:12:46]} {[%emt 00:03:18]} 9. cxd5
{[%clk 01:22:52]} {[%emt 00:05:07]} Bg4 {[%clk 01:03:07]} {[%emt 00:10:08]} 10.
Nd2 {[%clk 01:20:01]} {[%emt 00:03:21]} Bxe2 {[%clk 01:00:52]} {[%emt
00:02:45]} 11. Qxe2 {[%clk 01:20:18]} {[%emt 00:00:12]} Re8 {[%clk 01:00:49]}
{[%emt 00:00:33]} 12. O-O {[%clk 01:19:37]} {[%emt 00:01:12]} Na6 {[%clk
01:00:16]} {[%emt 00:01:03]} 13. f3 {[%clk 00:53:44]} {[%emt 00:26:22]} Nc7
{[%clk 00:48:38]} {[%emt 00:12:08]} 14. Qd3 {[%clk 00:40:39]} {[%emt 00:13:35]}
b5 {[%clk 00:42:35]} {[%emt 00:06:34]} 15. Rae1 {[%clk 00:35:53]} {[%emt
00:05:16]} a6 {[%clk 00:35:33]} {[%emt 00:07:32]} 16. Kh1 {[%clk 00:33:57]}
{[%emt 00:02:25]} Rc8 {[%clk 00:34:43]} {[%emt 00:01:21]} 17. Bg5 {[%clk
00:31:07]} {[%emt 00:03:20]} h6 {[%clk 00:26:16]} {[%emt 00:08:57]} 18. Bh4
{[%clk 00:30:11]} {[%emt 00:01:26]} g5 {[%clk 00:24:21]} {[%emt 00:02:25]} 19.
Bf2 {[%clk 00:30:11]} {[%emt 00:00:29]} Nd7 {[%clk 00:24:45]} {[%emt 00:00:07]}
20. Qc2 {[%clk 00:23:45]} {[%emt 00:06:55]} Ne5 {[%clk 00:21:39]} {[%emt
00:03:36]} 21. b3 {[%clk 00:18:37]} {[%emt 00:05:39]} c4 {[%clk 00:19:53]}
{[%emt 00:02:16]} 22. bxc4 {[%clk 00:16:37]} {[%emt 00:02:30]} bxc4 {[%clk
00:19:53]} {[%emt 00:00:29]} 23. Rb1 {[%clk 00:14:13]} {[%emt 00:02:54]} Qf6
{[%clk 00:18:16]} {[%emt 00:02:08]} 24. Bd4 {[%clk 00:13:24]} {[%emt 00:01:19]}
Qe7 {[%clk 00:07:18]} {[%emt 00:11:28]} 25. Rb7 {[%clk 00:09:29]} {[%emt
00:04:25]} Nd7 {[%clk 00:02:44]} {[%emt 00:05:04]} 26. Bxg7 {[%clk 00:08:16]}
{[%emt 00:01:42]} Kxg7 {[%clk 00:03:10]} {[%emt 00:00:05]} 27. Nxc4 {[%clk
00:07:24]} {[%emt 00:01:23]} Nb5 {[%clk 00:01:49]} {[%emt 00:01:51]} 28. Nxb5
{[%clk 00:07:11]} {[%emt 00:00:43]} axb5 {[%clk 00:02:08]} {[%emt 00:00:10]} 29.
Qb2+ {[%clk 00:06:41]} {[%emt 00:01:00]} Qf6 {[%clk 00:00:48]} {[%emt
00:01:51]} 30. Qxf6+ {[%clk 00:06:41]} {[%emt 00:00:30]} 1-0

[Event "XXII Obert Internacional d'Escacs Sant Marti 2022"]
[Site "Barcelona, Spain"]
[Date "2022.07.17"]
[Round "5.8"]
[White "Macak, Stefan"]
[Black "Pimpalkhare, Vedant"]
[Result "1/2-1/2"]
[TimeControl "1.30 fb 30"]
[WhiteElo "2363"]
[BlackElo "2057"]

1. d4 {[%clk 01:25:58]} {[%emt 00:05:01]} e6 {[%clk 01:30:17]} {[%emt
00:00:43]} 2. c4 {[%clk 01:26:08]} {[%emt 00:00:21]} Nf6 {[%clk 01:30:36]}
{[%emt 00:00:11]} 3. Nc3 {[%clk 01:26:18]} {[%emt 00:00:20]} d5 {[%clk
01:30:59]} {[%emt 00:00:06]} 4. cxd5 {[%clk 01:26:34]} {[%emt 00:00:15]} Nxd5
{[%clk 01:31:23]} {[%emt 00:00:06]} 5. e4 {[%clk 01:25:39]} {[%emt 00:01:25]}
Nxc3 {[%clk 01:31:48]} {[%emt 00:00:05]} 6. bxc3 {[%clk 01:26:05]} {[%emt
00:00:04]} c5 {[%clk 01:32:13]} {[%emt 00:00:04]} 7. Nf3 {[%clk 01:25:50]}
{[%emt 00:00:45]} cxd4 {[%clk 01:32:38]} {[%emt 00:00:06]} 8. cxd4 {[%clk
01:26:12]} {[%emt 00:00:07]} Bb4+ {[%clk 01:33:03]} {[%emt 00:00:06]} 9. Bd2
{[%clk 01:26:31]} {[%emt 00:00:10]} Bxd2+ {[%clk 01:33:28]} {[%emt 00:00:05]}
10. Qxd2 {[%clk 01:26:56]} {[%emt 00:00:06]} O-O {[%clk 01:33:54]} {[%emt
00:00:04]} 11. Bc4 {[%clk 01:20:25]} {[%emt 00:07:00]} b6 {[%clk 01:34:17]}
{[%emt 00:00:07]} 12. O-O {[%clk 01:19:50]} {[%emt 00:01:05]} Bb7 {[%clk
01:34:42]} {[%emt 00:00:06]} 13. Rfe1 {[%clk 01:16:56]} {[%emt 00:03:24]} Nd7
{[%clk 01:34:42]} {[%emt 00:00:30]} 14. Rad1 {[%clk 01:13:14]} {[%emt
00:04:12]} Rc8 {[%clk 01:34:51]} {[%emt 00:00:21]} 15. Bb3 {[%clk 01:10:10]}
{[%emt 00:03:32]} Re8 {[%clk 01:35:15]} {[%emt 00:00:07]} 16. h3 {[%clk
00:49:18]} {[%emt 00:21:22]} b5 {[%clk 01:19:10]} {[%emt 00:16:35]} 17. d5
{[%clk 00:41:27]} {[%emt 00:08:21]} exd5 {[%clk 01:13:51]} {[%emt 00:05:48]} 18.
exd5 {[%clk 00:36:18]} {[%emt 00:05:40]} Nb6 {[%clk 00:52:06]} {[%emt
00:22:16]} 19. Rxe8+ {[%clk 00:31:54]} {[%emt 00:04:54]} Qxe8 {[%clk 00:52:29]}
{[%emt 00:00:07]} 20. Qa5 {[%clk 00:30:13]} {[%emt 00:02:11]} Ra8 {[%clk
00:47:03]} {[%emt 00:05:55]} 21. Nd4 {[%clk 00:14:54]} {[%emt 00:15:49]} Bxd5
{[%clk 00:41:33]} {[%emt 00:06:00]} 22. Nxb5 {[%clk 00:10:37]} {[%emt
00:04:48]} Bxb3 {[%clk 00:39:36]} {[%emt 00:02:27]} 23. axb3 {[%clk 00:10:56]}
{[%emt 00:00:11]} Qe7 {[%clk 00:36:56]} {[%emt 00:03:09]} 24. Nxa7 {[%clk
00:08:06]} {[%emt 00:03:20]} Qf6 {[%clk 00:32:36]} {[%emt 00:04:49]} 25. Qd2
{[%clk 00:05:54]} {[%emt 00:02:37]} h6 {[%clk 00:30:39]} {[%emt 00:02:34]} 26.
Qd6 {[%clk 00:00:40]} {[%emt 00:05:44]} Qxd6 {[%clk 00:25:14]} {[%emt
00:05:55]} 27. Rxd6 {[%clk 00:01:04]} {[%emt 00:00:06]} Rxa7 {[%clk 00:24:40]}
{[%emt 00:01:04]} 28. Rxb6 {[%clk 00:01:32]} {[%emt 00:00:01]} Ra1+ {[%clk
00:24:05]} {[%emt 00:01:05]} 29. Kh2 {[%clk 00:02:02]} {[%emt 00:00:01]} Rb1
{[%clk 00:24:29]} {[%emt 00:00:06]} 30. g4 {[%clk 00:01:53]} {[%emt 00:00:38]}
g5 {[%clk 00:23:19]} {[%emt 00:01:40]} 31. Kg3 {[%clk 00:01:23]} {[%emt
00:01:01]} Rg1+ {[%clk 00:22:29]} {[%emt 00:01:19]} 32. Kf3 {[%clk 00:01:42]}
{[%emt 00:00:11]} Kg7 {[%clk 00:22:55]} {[%emt 00:00:03]} 33. Rd6 {[%clk
00:01:07]} {[%emt 00:01:04]} Rh1 {[%clk 00:23:09]} {[%emt 00:00:17]} 34. Kg2
{[%clk 00:01:22]} {[%emt 00:00:15]} Rb1 {[%clk 00:23:37]} {[%emt 00:00:02]} 35.
Rd3 {[%clk 00:01:34]} {[%emt 00:00:18]} Kg6 {[%clk 00:23:37]} {[%emt 00:00:30]}
36. Kf3 {[%clk 00:00:43]} {[%emt 00:01:21]} Rb2 {[%clk 00:21:11]} {[%emt
00:02:56]} 37. Ke3 {[%clk 00:00:43]} {[%emt 00:00:30]} h5 {[%clk 00:21:22]}
{[%emt 00:00:19]} 38. Kf3 {[%clk 00:00:32]} {[%emt 00:00:42]} f6 {[%clk
00:18:20]} {[%emt 00:03:31]} 39. Kg3 {[%clk 00:00:34]} {[%emt 00:00:29]} Kh6
{[%clk 00:18:30]} {[%emt 00:00:20]} 40. Kf3 {[%clk 00:00:37]} {[%emt 00:00:27]}
Kg6 {[%clk 00:18:55]} {[%emt 00:00:05]} 41. Rc3 {[%clk 00:01:00]} {[%emt
00:00:07]} Kh6 {[%clk 00:19:08]} {[%emt 00:00:16]} 42. Ke4 {[%clk 00:00:35]}
{[%emt 00:00:55]} Rxf2 {[%clk 00:19:27]} {[%emt 00:00:11]} 43. Rf3 {[%clk
00:00:37]} {[%emt 00:00:29]} Re2+ {[%clk 00:19:39]} {[%emt 00:00:18]} 44. Kf5
{[%clk 00:00:32]} {[%emt 00:00:34]} hxg4 {[%clk 00:19:53]} {[%emt 00:00:16]} 45.
Kxg4 {[%clk 00:00:35]} {[%emt 00:00:28]} Kg6 {[%clk 00:20:03]} {[%emt
00:00:20]} 46. Rc3 {[%clk 00:00:38]} {[%emt 00:00:27]} f5+ {[%clk 00:19:38]}
{[%emt 00:00:54]} 47. Kf3 {[%clk 00:00:35]} {[%emt 00:00:31]} Rh2 {[%clk
00:17:38]} {[%emt 00:02:32]} 48. Kg3 {[%clk 00:00:53]} {[%emt 00:00:13]} Rb2
{[%clk 00:18:00]} {[%emt 00:00:06]} 49. h4 {[%clk 00:00:41]} {[%emt 00:00:43]}
1/2-1/2

[Event "XXII Obert Internacional d'Escacs Sant Marti 2022"]
[Site "Barcelona, Spain"]
[Date "2022.07.17"]
[Round "5.9"]
[White "Barbero Sendic, Alejandro"]
[Black "Deodhar, Vrushali Umesh"]
[Result "1/2-1/2"]
[TimeControl "1.30 fb 30"]
[WhiteElo "2326"]
[BlackElo "1984"]

1. e4 {[%clk 01:27:46]} {[%emt 00:03:14]} e6 {[%clk 01:30:55]} {[%emt
00:00:06]} 2. d4 {[%clk 01:28:06]} {[%emt 00:00:09]} d5 {[%clk 01:31:21]}
{[%emt 00:00:05]} 3. Nc3 {[%clk 01:28:22]} {[%emt 00:00:13]} Bb4 {[%clk
01:30:26]} {[%emt 00:01:25]} 4. exd5 {[%clk 01:28:28]} {[%emt 00:00:24]} exd5
{[%clk 01:30:35]} {[%emt 00:00:20]} 5. Bd3 {[%clk 01:28:45]} {[%emt 00:00:11]}
Nc6 {[%clk 01:30:15]} {[%emt 00:00:53]} 6. Nf3 {[%clk 01:29:03]} {[%emt
00:00:12]} Nge7 {[%clk 01:29:54]} {[%emt 00:00:51]} 7. O-O {[%clk 01:29:20]}
{[%emt 00:00:13]} Bg4 {[%clk 01:29:53]} {[%emt 00:00:31]} 8. h3 {[%clk
01:29:17]} {[%emt 00:00:33]} Bxf3 {[%clk 01:14:26]} {[%emt 00:15:57]} 9. Qxf3
{[%clk 01:29:37]} {[%emt 00:00:10]} Nxd4 {[%clk 01:14:47]} {[%emt 00:00:09]} 10.
Qg4 {[%clk 01:30:01]} {[%emt 00:00:05]} Bxc3 {[%clk 01:14:50]} {[%emt
00:00:28]} 11. bxc3 {[%clk 01:30:21]} {[%emt 00:00:10]} Ne6 {[%clk 01:15:18]}
{[%emt 00:00:02]} 12. f4 {[%clk 01:30:36]} {[%emt 00:00:15]} h5 {[%clk
01:15:23]} {[%emt 00:00:26]} 13. Qe2 {[%clk 01:28:47]} {[%emt 00:02:19]} Qd6
{[%clk 01:05:32]} {[%emt 00:10:22]} 14. f5 {[%clk 01:16:50]} {[%emt 00:12:27]}
Nc5 {[%clk 01:03:59]} {[%emt 00:02:03]} 15. a4 {[%clk 00:49:39]} {[%emt
00:27:41]} Nxd3 {[%clk 00:55:31]} {[%emt 00:08:58]} 16. cxd3 {[%clk 00:50:01]}
{[%emt 00:00:07]} O-O-O {[%clk 00:54:57]} {[%emt 00:01:04]} 17. Ba3 {[%clk
00:40:34]} {[%emt 00:09:58]} Qb6+ {[%clk 00:55:17]} {[%emt 00:00:10]} 18. Kh1
{[%clk 00:39:08]} {[%emt 00:01:55]} Ng8 {[%clk 00:52:10]} {[%emt 00:03:37]} 19.
Rab1 {[%clk 00:37:33]} {[%emt 00:02:06]} Qc6 {[%clk 00:51:55]} {[%emt
00:00:45]} 20. Qf2 {[%clk 00:34:14]} {[%emt 00:03:47]} Qa6 {[%clk 00:40:38]}
{[%emt 00:11:49]} 21. Qd4 {[%clk 00:21:24]} {[%emt 00:13:19]} Nh6 {[%clk
00:29:08]} {[%emt 00:12:00]} 22. Rb5 {[%clk 00:13:39]} {[%emt 00:08:15]} f6
{[%clk 00:25:56]} {[%emt 00:03:43]} 23. Qb4 {[%clk 00:05:04]} {[%emt 00:09:05]}
Rhe8 {[%clk 00:20:41]} {[%emt 00:05:45]} 24. Ra5 {[%clk 00:02:45]} {[%emt
00:02:49]} Qb6 {[%clk 00:20:46]} {[%emt 00:00:24]} 25. Rb5 {[%clk 00:02:54]}
{[%emt 00:00:23]} Qa6 {[%clk 00:19:11]} {[%emt 00:02:04]} 26. Ra5 {[%clk
00:02:45]} {[%emt 00:00:39]} Qb6 {[%clk 00:06:50]} {[%emt 00:12:52]} 27. Rb5
{[%emt 00:05:28]} 1/2-1/2

[Event "XXII Obert Internacional d'Escacs Sant Marti 2022"]
[Site "Barcelona, Spain"]
[Date "2022.07.17"]
[Round "5.10"]
[White "Perpinya Rofes, Lluis Maria"]
[Black "Kshatriya, Nitin Vekhande"]
[Result "1-0"]
[TimeControl "1.30 fb 30"]
[WhiteElo "2297"]
[BlackElo "1782"]

1. e4 {[%clk 01:30:48]} {[%emt 00:00:10]} c5 {[%clk 01:30:56]} {[%emt
00:00:06]} 2. Nf3 {[%clk 01:30:45]} {[%emt 00:00:32]} d6 {[%clk 01:31:20]}
{[%emt 00:00:06]} 3. d4 {[%clk 01:30:46]} {[%emt 00:00:28]} cxd4 {[%clk
01:31:43]} {[%emt 00:00:08]} 4. Nxd4 {[%clk 01:31:08]} {[%emt 00:00:07]} Nf6
{[%clk 01:32:05]} {[%emt 00:00:09]} 5. Nc3 {[%clk 01:31:29]} {[%emt 00:00:08]}
g6 {[%clk 01:32:30]} {[%emt 00:00:06]} 6. Be3 {[%clk 01:30:59]} {[%emt
00:00:59]} Bg7 {[%clk 01:32:56]} {[%emt 00:00:05]} 7. f3 {[%clk 01:31:16]}
{[%emt 00:00:14]} O-O {[%clk 01:33:20]} {[%emt 00:00:06]} 8. Qd2 {[%clk
01:30:44]} {[%emt 00:01:01]} Nc6 {[%clk 01:33:36]} {[%emt 00:00:14]} 9. Bc4
{[%clk 01:30:51]} {[%emt 00:00:22]} Bd7 {[%clk 01:34:02]} {[%emt 00:00:05]} 10.
O-O-O {[%clk 01:30:46]} {[%emt 00:00:34]} Rc8 {[%clk 01:34:28]} {[%emt
00:00:05]} 11. Bb3 {[%clk 01:31:08]} {[%emt 00:00:09]} Ne5 {[%clk 01:34:46]}
{[%emt 00:00:12]} 12. Kb1 {[%clk 01:30:59]} {[%emt 00:00:38]} Nc4 {[%clk
01:34:47]} {[%emt 00:00:30]} 13. Bxc4 {[%clk 01:30:45]} {[%emt 00:00:43]} Rxc4
{[%clk 01:35:09]} {[%emt 00:00:08]} 14. g4 {[%clk 01:28:32]} {[%emt 00:02:42]}
b5 {[%clk 01:33:52]} {[%emt 00:01:48]} 15. b3 {[%clk 01:27:00]} {[%emt
00:02:02]} b4 {[%clk 01:29:36]} {[%emt 00:04:46]} 16. bxc4 {[%clk 01:24:24]}
{[%emt 00:03:05]} bxc3 {[%clk 01:30:01]} {[%emt 00:00:06]} 17. Qxc3 {[%clk
01:24:43]} {[%emt 00:00:11]} Qc7 {[%clk 01:30:23]} {[%emt 00:00:08]} 18. Ka1
{[%clk 01:21:38]} {[%emt 00:03:35]} Rc8 {[%clk 01:29:20]} {[%emt 00:01:33]} 19.
Rb1 {[%clk 01:18:55]} {[%emt 00:03:13]} Bc6 {[%clk 01:25:02]} {[%emt 00:04:48]}
20. Qb3 {[%clk 00:33:02]} {[%emt 00:46:22]} Nd7 {[%clk 01:24:15]} {[%emt
00:01:18]} 21. c3 {[%clk 00:29:41]} {[%emt 00:03:51]} Nc5 {[%clk 01:22:27]}
{[%emt 00:02:18]} 22. Qc2 {[%clk 00:28:04]} {[%emt 00:02:07]} Ba4 {[%clk
01:21:50]} {[%emt 00:01:07]} 23. Qd2 {[%clk 00:27:38]} {[%emt 00:00:55]} Qa5
{[%clk 01:15:45]} {[%emt 00:06:36]} 24. Rb2 {[%clk 00:24:32]} {[%emt 00:03:36]}
Na6 {[%clk 01:12:01]} {[%emt 00:04:14]} 25. Rhb1 {[%clk 00:22:08]} {[%emt
00:02:53]} Be8 {[%clk 01:09:53]} {[%emt 00:02:38]} 26. Rb7 {[%clk 00:19:11]}
{[%emt 00:03:27]} Nc5 {[%clk 00:50:20]} {[%emt 00:20:04]} 27. Rb8 {[%clk
00:14:38]} {[%emt 00:05:03]} Qc7 {[%clk 00:50:24]} {[%emt 00:00:26]} 28. Rxc8
{[%clk 00:14:58]} {[%emt 00:00:10]} Qxc8 {[%clk 00:50:51]} {[%emt 00:00:03]} 29.
Ne2 {[%clk 00:14:03]} {[%emt 00:01:24]} Ne6 {[%clk 00:50:46]} {[%emt 00:00:35]}
30. Bxa7 {[%clk 00:08:52]} {[%emt 00:05:42]} Qxc4 {[%clk 00:51:07]} {[%emt
00:00:09]} 31. Rb8 {[%clk 00:07:48]} {[%emt 00:01:33]} Qa4 {[%clk 00:50:45]}
{[%emt 00:00:53]} 32. Be3 {[%clk 00:06:35]} {[%emt 00:01:42]} Bf6 {[%clk
00:45:43]} {[%emt 00:05:32]} 33. Qd5 {[%clk 00:05:06]} {[%emt 00:01:59]} Nc7
{[%clk 00:42:34]} {[%emt 00:03:39]} 34. Qb3 {[%clk 00:05:07]} {[%emt 00:00:28]}
Qa6 {[%clk 00:42:41]} {[%emt 00:00:24]} 35. Qc2 {[%clk 00:03:17]} {[%emt
00:02:20]} h6 {[%clk 00:42:07]} {[%emt 00:01:05]} 36. Bb6 {[%clk 00:02:43]}
{[%emt 00:01:03]} Kg7 {[%clk 00:41:22]} {[%emt 00:01:16]} 37. Bxc7 {[%clk
00:02:40]} {[%emt 00:00:32]} Bb5 {[%clk 00:41:43]} {[%emt 00:00:10]} 38. Nd4
{[%clk 00:02:18]} {[%emt 00:00:52]} Ba4 {[%clk 00:41:02]} {[%emt 00:01:11]} 39.
Qd2 {[%clk 00:01:53]} {[%emt 00:00:55]} Bd7 {[%clk 00:39:41]} {[%emt 00:01:51]}
40. Rb1 {[%clk 00:01:42]} {[%emt 00:00:40]} Qc4 {[%clk 00:39:36]} {[%emt
00:00:36]} 41. Ba5 {[%clk 00:01:36]} {[%emt 00:00:36]} Qa4 {[%clk 00:37:55]}
{[%emt 00:02:11]} 42. Bb4 {[%clk 00:01:30]} {[%emt 00:00:36]} Kh7 {[%clk
00:38:03]} {[%emt 00:00:22]} 43. h4 {[%clk 00:01:30]} {[%emt 00:00:30]} Bxh4
{[%clk 00:37:55]} {[%emt 00:00:38]} 44. Rh1 {[%clk 00:01:19]} {[%emt 00:00:41]}
Bf6 {[%clk 00:37:55]} {[%emt 00:00:31]} 45. Qxh6+ {[%clk 00:01:17]} {[%emt
00:00:31]} Kg8 {[%clk 00:38:20]} {[%emt 00:00:05]} 46. Qd2 {[%clk 00:01:31]}
{[%emt 00:00:16]} Bg7 {[%clk 00:37:47]} {[%emt 00:01:03]} 47. Qd3 {[%clk
00:01:09]} {[%emt 00:00:52]} Qa8 {[%clk 00:37:32]} {[%emt 00:00:45]} 48. c4
{[%clk 00:01:10]} {[%emt 00:00:29]} Ba4 {[%clk 00:37:38]} {[%emt 00:00:24]} 49.
Bc3 {[%clk 00:01:12]} {[%emt 00:00:28]} e5 {[%clk 00:37:40]} {[%emt 00:00:28]}
50. Nb5 {[%clk 00:01:13]} {[%emt 00:00:28]} Bb3 {[%clk 00:37:29]} {[%emt
00:00:42]} 51. Rh2 {[%clk 00:01:31]} {[%emt 00:00:12]} Qa4 {[%clk 00:36:36]}
{[%emt 00:01:24]} 52. Nxd6 {[%clk 00:01:06]} {[%emt 00:00:54]} Qa3 {[%clk
00:35:39]} {[%emt 00:01:27]} 53. Rb2 {[%clk 00:00:45]} {[%emt 00:00:51]} Bxa2
{[%clk 00:36:04]} {[%emt 00:00:05]} 54. Nb5 {[%clk 00:00:58]} {[%emt 00:00:17]}
Bxc4+ {[%clk 00:36:21]} {[%emt 00:00:13]} 55. Nxa3 {[%clk 00:01:24]} {[%emt
00:00:05]} Bxd3 {[%clk 00:36:45]} {[%emt 00:00:05]} 56. Rd2 {[%clk 00:01:37]}
{[%emt 00:00:16]} Ba6 {[%clk 00:37:05]} {[%emt 00:00:11]} 57. Nc2 {[%clk
00:01:53]} {[%emt 00:00:14]} f6 {[%clk 00:37:21]} {[%emt 00:00:13]} 58. Nb4
{[%clk 00:02:14]} {[%emt 00:00:09]} Bc4 {[%clk 00:37:43]} {[%emt 00:00:09]} 59.
Kb2 {[%clk 00:01:57]} {[%emt 00:00:46]} Bh6 {[%clk 00:37:54]} {[%emt 00:00:20]}
60. Rd8+ {[%clk 00:01:19]} {[%emt 00:01:09]} Kf7 {[%clk 00:38:16]} {[%emt
00:00:08]} 61. Nd5 {[%clk 00:01:36]} {[%emt 00:00:12]} Bg5 {[%clk 00:38:42]}
{[%emt 00:00:04]} 62. Rd7+ {[%clk 00:01:32]} {[%emt 00:00:34]} Kg8 {[%clk
00:39:06]} {[%emt 00:00:05]} 63. Kc2 {[%clk 00:01:11]} {[%emt 00:00:52]} Be2
{[%clk 00:39:29]} {[%emt 00:00:06]} 64. Bd2 {[%clk 00:01:28]} {[%emt 00:00:13]}
Bxf3 {[%clk 00:38:56]} {[%emt 00:01:04]} 65. Bxg5 {[%clk 00:01:45]} {[%emt
00:00:13]} fxg5 {[%clk 00:39:11]} {[%emt 00:00:15]} 66. Nf6+ {[%clk 00:02:00]}
{[%emt 00:00:15]} Kf8 {[%clk 00:39:39]} {[%emt 00:00:02]} 67. Kd3 {[%clk
00:02:04]} {[%emt 00:00:26]} Bd1 {[%clk 00:40:02]} {[%emt 00:00:07]} 68. Ke3
{[%clk 00:02:12]} {[%emt 00:00:22]} Ba4 {[%clk 00:40:17]} {[%emt 00:00:15]} 69.
Ra7 {[%clk 00:02:37]} {[%emt 00:00:05]} Bd1 {[%clk 00:40:42]} {[%emt 00:00:04]}
70. Nd7+ {[%clk 00:02:46]} {[%emt 00:00:21]} Ke8 {[%clk 00:41:06]} {[%emt
00:00:07]} 71. Nxe5 {[%clk 00:03:12]} {[%emt 00:00:04]} Kf8 {[%clk 00:41:15]}
{[%emt 00:00:22]} 72. Nxg6+ {[%clk 00:03:31]} {[%emt 00:00:11]} Ke8 {[%clk
00:41:34]} {[%emt 00:00:11]} 73. Ne5 {[%clk 00:03:55]} {[%emt 00:00:05]} Kf8
{[%clk 00:42:01]} {[%emt 00:00:03]} 74. Kd4 {[%clk 00:04:18]} {[%emt 00:00:07]}
Ke8 {[%clk 00:42:27]} {[%emt 00:00:05]} 75. Rb7 {[%clk 00:04:27]} {[%emt
00:00:21]} Ba4 {[%clk 00:42:36]} {[%emt 00:00:21]} 76. Kd5 {[%clk 00:04:17]}
{[%emt 00:00:39]} Kd8 {[%clk 00:43:00]} {[%emt 00:00:07]} 77. Kd6 {[%clk
00:04:27]} {[%emt 00:00:20]} Kc8 {[%clk 00:43:01]} {[%emt 00:00:29]} 78. Ra7
{[%clk 00:04:32]} {[%emt 00:00:24]} Bc6 {[%clk 00:43:06]} {[%emt 00:00:25]} 79.
Kxc6 {[%clk 00:04:53]} {[%emt 00:00:10]} Kd8 {[%clk 00:43:34]} {[%emt
00:00:02]} 80. Ng6 {[%clk 00:05:05]} {[%emt 00:00:17]} Ke8 {[%clk 00:44:00]}
{[%emt 00:00:04]} 81. Kd6 {[%clk 00:05:32]} {[%emt 00:00:03]} Kd8 {[%clk
00:44:25]} {[%emt 00:00:05]} 82. Ra8# {[%clk 00:05:58]} {[%emt 00:00:03]} 1-0